Cogmind - Beta 15 @@@ ROGUE MODE // 2025.10.05 @ 17:56:14 Player: beans Result: Destroyed by H-61 Shepherd with Heavy Assault Cannon Performance ------------- Evolutions (3) 1500 Regions Visited (6) 1200 Robots Destroyed (63) 315 Value Destroyed (2273) 2273 Prototype IDs (0) 0 Alien Tech Used (0) 0 Bonus (902) 902 TOTAL SCORE: 6190 Bonus ------- High Alert Combat Kills 489 Follower Combat Kills 624 Friendly Fire -211 Cogmind --------- Core Integrity 0/700 Matter 17/300 Energy 100/100 System Corruption 29% Temperature Cool (0) Movement Core (50) Location -7/Factory Parts ------- > --- POWER (1) -------- (None) > --- PROPULSION (4) --- (None) > --- UTILITY (4) ------ (None) > --- WEAPON (4) ------- (None) > --- INVENTORY (5) ---- Advanced Particle Charger Peak State ------------ > --- POWER ------------ Light Ion Engine > --- PROPULSION ------- Improved Hover Unit Backup Propulsion III Backup Propulsion III Gravmag System > --- UTILITY ---------- Improved Heat Sink Transport Network Coupler Backup Plating III Hardened Medium Armor Plating > --- WEAPON ----------- Heavy Battle Rifle Heavy Battle Rifle Heavy Battle Rifle Heavy Battle Rifle > --- INVENTORY -------- Improved Heat Sink Advanced Particle Charger Gauss Rifle Gauss Rifle Assault Cannon [Rating: 41] Favorites ----------- Power Backup Power III Engine Backup Power III Propulsion Backup Propulsion III Treads Medium Treads Leg Aluminum Leg Hover Unit Backup Propulsion III Utility Transport Network Coupler Device Improved Heat Sink Processor Transport Network Coupler Protection Backup Plating III Weapon Heavy Battle Rifle Energy Gun Pulse Rifle Ballistic Gun Heavy Battle Rifle Ballistic Cannon Assault Cannon Build | -11 -10 -9 -8 -7 -7 -7 ------- Run | Yrd Mat Mat Mat Fac Was Fac Slots Evolved 6 | . . 2 2 2 . . Power . | . . . . . . . Propulsion 2 | . . 2 . . . . Utility 2 | . . . 1 1 . . Weapon 2 | . . . 1 1 . . Parts Attached 38 | 4 1 6 7 2 6 12 Power 3 | 1 . . 1 . . 1 Engine 3 | 1 . . 1 . . 1 Core . | . . . . . . . Reactor . | . . . . . . . Propulsion 11 | 2 . 2 4 . . 3 Treads 1 | . . . . . . 1 Leg 8 | 2 . 2 4 . . . Wheel . | . . . . . . . Hover 2 | . . . . . . 2 Flight . | . . . . . . . Utility 6 | . 1 . 1 1 1 2 Device 4 | . . . 1 1 . 2 Storage . | . . . . . . . Processor 1 | . 1 . . . . . Hackware . | . . . . . . . Protection 1 | . . . . . 1 . Artifact . | . . . . . . . Weapon 18 | 1 . 4 1 1 5 6 Energy Gun 4 | . . 2 1 1 . . Energy Cannon . | . . . . . . . Ballistic Gun 7 | 1 . . . . 4 2 Ballistic Cannon 7 | . . 2 . . 1 4 Launcher . | . . . . . . . Special Weapon . | . . . . . . . Impact Weapon . | . . . . . . . Slashing Weapon . | . . . . . . . Piercing Weapon . | . . . . . . . Special Melee Weapon . | . . . . . . . Unidentified Prototypes . | . . . . . . . Corrupted Parts 5 | . 1 . . . . 4 System Corruption 29 | . 9 . . . . 20 Parts Lost 31 | . 3 . 4 . 6 18 Power 3 | . 1 . . . . 2 Propulsion 11 | . 2 . 3 . 1 5 Utility 7 | . . . . . 2 5 Weapon 10 | . . . 1 . 3 6 Highest Loss Streak 10 | . 3 . 3 . 5 10 To Critical Strikes 1 | . . . . . . 1 Average Backups 2 | . . 4 4 2 2 3 Power . | . . . . . . . Propulsion . | . . . . . . . Utility 1 | . . . 1 1 1 1 Weapon 1 | . . 3 3 1 . 1 Tool/Special . | . . . . . . . Unused Backups 1 | . . . . . . 1 Power . | . . . . . . . Propulsion . | . . . . . . . Utility 1 | . . . . . . 1 Weapon . | . . . . . . . Tool/Special . | . . . . . . . Average Slot Usage (%) 55 | . 54 40 52 81 49 59 Engine 4 | . 14 . 1 7 4 2 Leg 8 | . 24 8 20 23 5 . Hover 6 | . . . . . 6 11 Device 3 | . . . 1 12 3 3 Processor 6 | . 2 11 9 7 7 6 Protection 3 | . . . . . 2 8 Energy Gun 4 | . . 6 6 30 6 . Ballistic Gun 11 | . 12 . . . 9 19 Ballistic Cannon 5 | . . 15 14 . 2 4 Peak Build Rating 41 | 4 5 10 29 36 36 41 Average Rating 19 | 2 3 8 14 34 20 26 On Entrance 16 | . 4 1 10 29 36 33 Naked Turns 46 | . . . . . . 46 Heaviest Build 30 | 5 5 10 20 25 28 30 Greatest Support 47 | 20 20 20 47 47 47 32 Greatest Overweight (x) 8 | 1 1 3 . . 3 8 Average Overweight (x) . | . . . . . . . Largest Inventory Capacity 5 | 5 5 5 5 5 5 5 Average Capacity 5 | 5 5 5 5 5 5 5 Most Carried 5 | 2 1 5 5 3 5 5 Average Carried 3 | . . 4 4 2 2 3 Final Capacity 5 | 5 5 5 5 5 5 5 Final Carried 5 | . 1 5 3 2 2 1 Class Distribution -------------------- 45% | Mutant 22% | Derelict-Tank 13% | Skirmisher 12% | Scavenger-Skirmisher 5% | Scavenger-Tank Dominant Class ---------------- Mutant | -10/Materials Mutant | -9/Materials Mutant | -8/Materials Scavenger-Skirmisher | -7/Factory Mutant | -7/Waste Derelict-Tank | -7/Factory Resources | -11 -10 -9 -8 -7 -7 -7 ----------- Run | Yrd Mat Mat Mat Fac Was Fac Matter Collected 1684 | 222 75 250 327 20 126 664 Remotely . | . . . . . . . Salvage Created 2485 | . 191 517 549 24 . 1204 Parts 129 | . 11 26 29 3 . 60 Haulers Intercepted 2 | . 1 . . . . 1 Recyclers Shooed 4 | . 1 2 1 . . . Parts Field Recycled . | . . . . . . . Retrieved Matter . | . . . . . . . Parts Self-Destructed . | . . . . . . . Prevented . | . . . . . . . Kills | -11 -10 -9 -8 -7 -7 -7 ------- Run | Yrd Mat Mat Mat Fac Was Fac Combat Hostiles Destroyed 42 | . 3 9 9 . . 21 Guns 19 | . 3 . 4 . . 12 Cannons 23 | . . 9 5 . . 9 Classes Destroyed 11 | . 2 5 . 1 . 3 Worker 3 | . . 1 . . . 2 Builder 3 | . . . . 1 . 2 Hauler 2 | . 1 . . . . 1 Recycler 7 | . . 2 2 . . 3 Watcher 5 | . . 2 2 . . 1 Swarmer 1 | . . . . . . 1 Grunt 30 | . 3 6 7 . . 14 Brawler 4 | . . 2 . . . 2 Protector 1 | . . . . . . 1 Sentry 5 | . . 1 2 . . 2 Programmer 1 | . . . . . . 1 Wasp 1 | . . . . . . 1 Best Kill Streak 9 | . 2 9 8 1 . 5 Combat Bots Only 5 | . 2 5 5 . . 5 Max Kills in Single Turn 2 | . 1 2 1 1 . 2 Gunslinging 1 | . . . . . . 1 Exploded . | . . . . . . . Melee . | . . . . . . . Uniques/NPCs Destroyed . | . . . . . . . Combat | -11 -10 -9 -8 -7 -7 -7 -------- Run | Yrd Mat Mat Mat Fac Was Fac Hostile Shots Fired 392 | . 59 24 46 . 4 259 Missed 115 | . 22 5 17 . 1 70 Hits 277 | . 37 19 29 . 3 189 Melee 4 | . . . . . 3 1 Projectile 273 | . 37 19 29 . . 188 Critical Strikes 14 | . . . 2 . 3 9 Damage Taken 4460 | . 542 221 438 . 181 3078 Core 1008 | . 215 32 13 . 19 729 Absorbed by Shields . | . . . . . . . Core Remaining (%) 75 | 100 14 92 97 . . . Volleys Fired 165 | . 29 23 28 3 15 67 Largest 4 | . 1 2 3 4 4 4 Hottest 252 | . 20 126 189 252 252 132 Shots Fired 379 | . 28 46 62 12 27 204 Gun 229 | . 28 4 19 12 16 150 Cannon 150 | . . 42 43 . 11 54 Launcher . | . . . . . . . Special . | . . . . . . . Kinetic 328 | . 28 42 43 . 11 204 Thermal 51 | . . 4 19 12 16 . Explosive . | . . . . . . . Electromagnetic . | . . . . . . . Robot Hit Streak 13 | . 5 11 13 1 7 9 Robot Miss Streak 9 | . 2 4 3 5 2 9 Penetration Max 1 | . . . . . . 1 Secondary Targets 7 | . . . 1 . . 6 Max Gunslinging Chain 1 | . . . 1 . . 1 Shots Hit Robots 210 | . 18 28 42 1 20 101 Core Hits 98 | . 6 16 21 1 3 51 Critical Kills 1 | . 1 . . . . . Critical Parts Destroyed 2 | . . . . . . 2 Critical Strikes 10 | . 1 1 2 . . 6 Burn 2 | . . . 2 . . . Destroy 3 | . 1 . . . . 2 Blast 5 | . . 1 . . . 4 Melee Attacks . | . . . . . . . Impact . | . . . . . . . Slashing . | . . . . . . . Piercing . | . . . . . . . Sneak Attacks . | . . . . . . . Combat Hostiles . | . . . . . . . Follow-up Attacks . | . . . . . . . Damage Inflicted 6066 | . 225 757 958 17 554 3555 Guns 2685 | . 225 50 258 17 235 1900 Cannons 3381 | . . 707 700 . 319 1655 Explosions . | . . . . . . . Melee . | . . . . . . . Ramming . | . . . . . . . Kinetic 5506 | . 225 707 700 . 319 3555 Thermal 560 | . . 50 258 17 235 . Explosive . | . . . . . . . Electromagnetic . | . . . . . . . Impact . | . . . . . . . Slashing . | . . . . . . . Piercing . | . . . . . . . Highest Corruption 29 | . 12 . . . . 29 Average Corruption 17 | . 9 . . . . 18 Corruption Purged . | . . . . . . . Corruption Blocked . | . . . . . . . Effects 17 | . 3 . . . . 14 Message Errors 7 | . 1 . . . . 6 Matter Fused 1 | . . . . . . 1 Heat Flow Errors 1 | . . . . . . 1 Energy Discharges 2 | . . . . . . 2 Data Loss (minor) 2 | . . . . . . 2 Misfires 1 | . . . . . . 1 Misdirections 1 | . 1 . . . . . Weapon Failures 2 | . 1 . . . . 1 Overload Shots . | . . . . . . . Overflow Damage 207 | . . . . . . 207 Projectiles 207 | . . . . . . 207 Explosions . | . . . . . . . Melee . | . . . . . . . Knockbacks 25 | . . 7 7 . 2 9 Impact . | . . . . . . . Kinetic 21 | . . 5 6 . 2 8 Secondary 4 | . . 2 1 . . 1 Self-Inflicted Damage . | . . . . . . . Shots . | . . . . . . . Rammed . | . . . . . . . Targets Rammed . | . . . . . . . Kicked . | . . . . . . . Crushed . | . . . . . . . Highest Temperature 440 | . 2 42 174 132 132 440 Average Temperature 93 | . 2 13 55 72 72 119 Received Heat Transfer 2229 | . 264 114 279 . . 1572 Effects 3 | . . . . . . 3 Energy Bleed 1 | . . . . . . 1 Damage (major) 2 | . . . . . . 2 Siege Activations . | . . . . . . . Martial Activations . | . . . . . . . Shielding Activations . | . . . . . . . Robots Disrupted . | . . . . . . . Combat Hostiles . | . . . . . . . Robots Corrupted . | . . . . . . . Combat Hostiles . | . . . . . . . Parts Fried . | . . . . . . . Impact Corruptions 1 | . . . . . . 1 Robots Melted . | . . . . . . . Combat Hostiles . | . . . . . . . Parts Melted 2 | . . . 2 . . . Heat Transferred 1369 | . . 111 703 37 518 . Parts Sabotaged . | . . . . . . . Parts Stolen . | . . . . . . . Parts Stripped . | . . . . . . . Power Chain Reactions . | . . . . . . . Alert | -11 -10 -9 -8 -7 -7 -7 ------- Run | Yrd Mat Mat Mat Fac Was Fac Maximum Alert Level 3 | . . 1 . . . 3 Low Security (%) 62 | 100 100 68 100 100 100 6 Level 1 2 | . . 31 . . . . Level 2 1 | . . . . . . 5 Level 3 33 | . . . . . . 88 Level 4 . | . . . . . . . Level 5 . | . . . . . . . High Security . | . . . . . . . Max Security . | . . . . . . . Peak Influence 935 | . 75 222 156 64 17 935 Initial 85 | . . 19 85 64 . . Average 308 | . 24 119 82 33 . 755 Influence Increases 2273 | . 147 283 248 5 33 1557 Destroy 0b10 Robot/C 1080 | . 60 180 180 . . 660 Destroy 0b10 Robot/NC 125 | . 5 25 20 5 . 70 Destroy Leader 236 | . 22 44 44 . . 126 Allied During Kill 225 | . . . . . . 225 Select Force Hacks 30 | . . . . . . 30 Disable Machine 210 | . 15 30 . . . 165 Anti-Garrison Action 150 | . . . . . . 150 Destroy Structure 127 | . . 4 4 . 33 86 Lose Combat Pursuer 90 | . 45 . . . . 45 Influence Decreases 1338 | . 100 128 307 148 33 622 Entered New Map 224 | . . 28 117 79 . . Time Decay 769 | . 70 100 150 69 8 372 Lost Part 258 | . 30 . 40 . 8 180 Lost Ally 87 | . . . . . 17 70 Squads Dispatched 18 | . 3 . 1 . . 14 Investigation 3 | . . . 1 . . 2 Extermination 2 | . . . . . . 2 Reinforcement 6 | . 3 . . . . 3 Assault 5 | . . . . . . 5 Garrison 2 | . . . . . . 2 Intercept . | . . . . . . . Searches Triggered . | . . . . . . . Construction Impeded 1 | . . . . . . 1 Haulers Reinforced . | . . . . . . . Active Scanning Responses . | . . . . . . . Cargo Convoy Interrupts . | . . . . . . . Stealth | -11 -10 -9 -8 -7 -7 -7 --------- Run | Yrd Mat Mat Mat Fac Was Fac Distress Signals 1 | . . 1 . . . . Communications Jammed . | . . . . . . . Distress Signals . | . . . . . . . Times Spotted 89 | . 15 11 11 2 6 44 Peak Tracking Total 8 | . 8 3 4 2 6 6 Tactical Retreats 2 | . 1 . . . . 1 Traps | -11 -10 -9 -8 -7 -7 -7 ------- Run | Yrd Mat Mat Mat Fac Was Fac Traps Triggered 5 | . 3 . 1 1 . . Indirectly . | . . . . . . . Trap Hack Attempts . | . . . . . . . Triggered . | . . . . . . . Disarmed . | . . . . . . . Reprogrammed . | . . . . . . . Reused . | . . . . . . . Traps Extracted . | . . . . . . . Installed . | . . . . . . . Triggered . | . . . . . . . Machines | -11 -10 -9 -8 -7 -7 -7 ---------- Run | Yrd Mat Mat Mat Fac Was Fac Machines Disabled 15 | . 1 2 . . . 12 Max in Single Turn 1 | . 1 1 . . . 1 Garrison Access 1 | . . . . . . 1 Machines Repaired . | . . . . . . . Machines Dismantled . | . . . . . . . Machines Sabotaged . | . . . . . . . Overloaded Fab Kills . | . . . . . . . Hacking | -11 -10 -9 -8 -7 -7 -7 --------- Run | Yrd Mat Mat Mat Fac Was Fac Machines Accessed 4 | . . . 1 1 . 2 Terminals 2 | . . . 1 . . 1 Fabricators 1 | . . . . 1 . . Repair Stations . | . . . . . . . Recycling Units 1 | . . . . . . 1 Scanalyzers . | . . . . . . . Garrison Access . | . . . . . . . Total Hacks 11 | . . . 2 1 . 8 Successful 5 | . . . 1 . . 4 Failed 6 | . . . 1 1 . 4 Catastrophic . | . . . . . . . Database Lockouts . | . . . . . . . Manual 6 | . . . 2 . . 4 Terminals 5 | . . . 2 . . 3 Fabricators 1 | . . . . 1 . . Repair Stations . | . . . . . . . Recycling Units 5 | . . . . . . 5 Scanalyzers . | . . . . . . . Garrison Access . | . . . . . . . Terminal Hacks 1 | . . . 1 . . . Hauler Manifests 1 | . . . 1 . . . Fabricator Hacks . | . . . . . . . Repair Station Hacks . | . . . . . . . Recycling Unit Hacks . | . . . . . . . Scanalyzer . | . . . . . . . Garrison Access Hacks . | . . . . . . . Unauthorized Hacks 1 | . . . . . . 1 Terminals . | . . . . . . . Fabricators . | . . . . . . . Repair Stations . | . . . . . . . Recycling Units 1 | . . . . . . 1 Tunnel 1 | . . . . . . 1 Scanalyzers . | . . . . . . . Garrison Access . | . . . . . . . Data Cores Recovered . | . . . . . . . Used . | . . . . . . . Hacking Detections 4 | . . . 1 1 . 2 Full Trace Events 1 | . . . . . . 1 Feedback Events . | . . . . . . . Feedback Blocked . | . . . . . . . Robot Schematics Acquired . | . . . . . . . Robots Built . | . . . . . . . Authchips . | . . . . . . . Time . | . . . . . . . Total Robot Build Rating . | . . . . . . . Part Schematics Acquired . | . . . . . . . Parts Built . | . . . . . . . Authchips . | . . . . . . . Time . | . . . . . . . Total Part Build Rating . | . . . . . . . Parts Repaired . | . . . . . . . Time . | . . . . . . . Parts Recycled . | . . . . . . . Recycled Matter . | . . . . . . . Retrieved Matter . | . . . . . . . Retrieved Components . | . . . . . . . Parts Scanalyzed . | . . . . . . . Part Schematics Acquired . | . . . . . . . Parts Damaged . | . . . . . . . Bothacking | -11 -10 -9 -8 -7 -7 -7 ------------ Run | Yrd Mat Mat Mat Fac Was Fac Used RIF Installer . | . . . . . . . Robots Hacked . | . . . . . . . Non-combat . | . . . . . . . Combat . | . . . . . . . Robot Hacks Applied . | . . . . . . . Relay Couplers Released 2 | . . . . . . 2 Machine Destruction 2 | . . . . . . 2 Fabnet Peak Effective % . | . . . . . . . Robots Rewired . | . . . . . . . Allies Hacked . | . . . . . . . Hacks Repelled . | . . . . . . . Allies | -11 -10 -9 -8 -7 -7 -7 -------- Run | Yrd Mat Mat Mat Fac Was Fac Total Allies 19 | . . . . . 19 . Largest Group 19 | . . . . . 19 13 Highest-Rated Group 465 | . . . . . 465 346 Highest-Rated Ally 35 | . . . . . 35 35 Total Orders . | . . . . . . . Ally Attacks 164 | . . . . . 132 32 Total Damage 5376 | . . . . . 3481 1895 Kills 26 | . . . . . 8 18 Allies Corrupted . | . . . . . . . Allies Melted . | . . . . . . . Intel | -11 -10 -9 -8 -7 -7 -7 ------- Run | Yrd Mat Mat Mat Fac Was Fac Active Infowar (turns) 2133 | . 49 218 313 144 585 824 T.N.C. 2133 | . 49 218 313 144 585 824 Robot Analysis Total . | . . . . . . . Derelict Logs Recovered . | . . . . . . . Drone Launches . | . . . . . . . Drone Recoveries . | . . . . . . . Exploration | -11 -10 -9 -8 -7 -7 -7 ------------- Run | Yrd Mat Mat Mat Fac Was Fac Turns Passed 2492 | 51 247 218 313 144 585 934 Spaces Moved 1686 | 47 184 118 167 107 508 555 Core 471 | 21 60 55 . . 198 137 Treads 22 | . . . . . . 22 Legs 582 | 26 124 63 167 107 95 . Wheels . | . . . . . . . Hover 611 | . . . . . 215 396 Flight . | . . . . . . . Fastest Speed 50 | 50 50 50 120 123 50 50 Average Speed 108 | 94 97 110 121 123 97 116 Slowest Speed 450 | 120 120 200 130 123 200 450 Overloaded Moves . | . . . . . . . Propulsion Burnouts . | . . . . . . . Robots Hopped . | . . . . . . . Potential Cave-ins . | . . . . . . . Cave-ins Triggered . | . . . . . . . Exploration Rate (%) 27 | 3 47 15 16 3 95 16 Regions Visited 6 Branch Regions . Pre-discovered Areas 1 | . . . . . . 1 Known Exits Taken . | . . . . . . . Unknown Exits Taken 4 | 1 1 1 1 . . . Scrap Searched . | . . . . . . . Spaces Dug . | . . . . . . . Terrain Destroyed 32 | . . 4 2 . 1 25 Melee . | . . . . . . . Projectile 32 | . . 4 2 . 1 25 AOE . | . . . . . . . Terrain Rammed . | . . . . . . . Walls Destroyed . | . . . . . . . Machines Disabled . | . . . . . . . Actions | -11 -10 -9 -8 -7 -7 -7 --------- Run | Yrd Mat Mat Mat Fac Was Fac Total 2007 | 54 222 158 218 113 575 667 Wait 84 | . 7 4 12 . 41 20 Move 1681 | 46 183 117 166 107 507 555 Hop . | . . . . . . . Pick Up 28 | 4 1 7 3 1 4 8 Fast Attach 11 | . . 2 3 . 2 4 Attach 27 | 4 1 2 5 2 5 8 Detach 2 | . 1 . . . 1 . Swap 3 | . . 2 1 . . . Drop 6 | . . 1 . . . 5 Fire 165 | . 29 23 28 3 15 67 Melee . | . . . . . . . Ram . | . . . . . . . Kick . | . . . . . . . Crush . | . . . . . . . Escape Stasis . | . . . . . . . Rewire . | . . . . . . . Trap . | . . . . . . . Miscellaneous . | . . . . . . . Route ------- -11/Scrapyard -10/Materials -9/Materials -8/Materials -7/Factory -7/Waste -7/Factory (discovered 1 exit: [*Fac]) History --------- Turn | Location | Event 4 | -11/Scrapyard | Discovered new exit (range 14) 52 | -11/Scrapyard | Entered Materials 251 | -10/Materials | System corruption reached 10% 270 | -10/Materials | Core integrity fell below 50% 292 | -10/Materials | Discovered new exit (range 14) 296 | -10/Materials | Core integrity fell below 20% 299 | -10/Materials | Entered another Materials area 299 | -9/Materials | Evolved 2 slots: Propulsion x2 325 | -9/Materials | Lost 3 parts (1p2n) 345 | -9/Materials | Build established: Mutant 487 | -9/Materials | Discovered new exit (range 9) 517 | -9/Materials | Entered another Materials area 517 | -8/Materials | Evolved 2 slots: Utility x1, Weapon x1 770 | -8/Materials | Discovered new exit (range 12) 781 | -8/Materials | Lost 3 parts (2n1w) 830 | -8/Materials | Entered Factory 830 | -7/Factory | Evolved 2 slots: Utility x1, Weapon x1 974 | -7/Factory | Sucked down chute 974 | -7/Factory | Entered Waste 1011 | -7/Waste | Spotted C-40 Crusher 1021 | -7/Waste | Spotted C-40 Crusher 1080 | -7/Waste | Spotted C-40 Crusher 1083 | -7/Waste | Build established: Scavenger-Skirmisher 1084 | -7/Waste | Spotted C-40 Crusher 1088 | -7/Waste | Crushed by Compactor (1 part destroyed, 2 dropped) 1092 | -7/Waste | Crushed by Compactor (1 part destroyed, 1 dropped) 1093 | -7/Waste | Spotted C-40 Crusher 1104 | -7/Waste | Crushed by Compactor (1 part destroyed, 2 dropped) 1109 | -7/Waste | Spotted C-40 Crusher 1135 | -7/Waste | Lost 5 parts (1n2u2w) 1145 | -7/Waste | Discovered new exit (range 13) 1182 | -7/Waste | Warlord forces began an assault 1209 | -7/Waste | Allies destroyed C-40 Crusher 1214 | -7/Waste | Allies destroyed C-40 Crusher 1222 | -7/Waste | Allies destroyed C-40 Crusher 1229 | -7/Waste | Allies destroyed C-40 Crusher 1234 | -7/Waste | Allies destroyed C-40 Crusher 1263 | -7/Waste | Lost 6 allies 1559 | -7/Waste | Entered Factory 1559 | -7/Factory | Accompanied by 13 allies 1608 | -7/Factory | Garrison activated, responded to threat 1672 | -7/Factory | Build established: Derelict-Tank 1728 | -7/Factory | Lost 11 allies 1959 | -7/Factory | First assault squad dispatched 2141 | -7/Factory | Lost 10 parts (1p4n3u2w) 2178 | -7/Factory | System corruption reached 10% 2331 | -7/Factory | Garrison activated, responded to threat 2369 | -7/Factory | Core integrity fell below 50% 2387 | -7/Factory | Build established: Skirmisher 2432 | -7/Factory | Core integrity fell below 20% 2478 | -7/Factory | Lost 7 parts (1n2u4w) 2492 | -7/Factory | Discovered new exit (range 9) 2493 | -7/Factory | Destroyed by H-61 Shepherd with Heavy Assault Cannon Last Messages --------------- K-01 Serf collects debris. G-47 Trooper knocked back. Critical hit (Burn: +37). M-28 Smith fits Backup Power III on M-13 Machinist. M-28 Smith fits Backup Propulsion III on M-13 Machinist. K-01 Serf collects debris. Critical hit (Burn: +37). K-01 Serf collects debris. Acquired 8 matter. S1MVY=:FRJON6FW9I ZA QRILJ&Z K-01 Serf collects debris. Hvy. Assault Cannon destroyed. ALERT: Potential suspicious activity detected, Programmers report to Factory Zone 6M. ALERT: Suspicious intruders detected, dispatching Cutter reinforcements to area. XIA>#ECKT%SI%QXBU7BM EXIT=FOUND Map ----- +----------------------------------------------------+ | " % #??????# +??????????? #???? | | "" % #######??????# #???"""??""" #???? | | T [=% # ! ]??????# #???""" """" #???? | | " %* =# ? ]??????# #??"""" """" #???? | | ""=%%!%# ? ]??????# #? """" """" #???? | | %[*#???? ??????####### # """" """" #???? | | +???????????#??????# # #???? | | #???????????# ????# # #???? | | #???????????# """??# # #???? | | #???????????# """ # ##+########+##???? | | ? ##????????????# """ + #????? | | ??? ??????????????# # ###########+#????? | | ???????????????????# ??# #?# #????? | | ???????????????????###??### ### ! #????? | | ????????????????????????# # #????? | | ????????????????????????# # = #????? | | ????????????????????????# + #????? | | ????????????????????????# # #????? | | ????????????????????????# # #????? | | ????????????????????????## ## #????? | | ?????????????????????????# ############????? | | ?????????????????????????# #???????????????? | | ?????????????????????????# #???????????????? | | ????????????????????????## ##??????????????? | | ??????????????# ##### #??????????????? | | ?????????? c@ #??????????????? | | ??????????????# H c %" #??????????????? | | ??????????????# #??????????????? | | ??????????????# ##### #??????????????? | | ??????????????## ?????#######??????????????? | | ???????????????# ???????????????????????????? | | ???????????????+?????????????????????????????? | | ?????????????????????????????????????????????? | | ?????????????????????????????????????????????? | | ?????????????????????????????????????????????? | | ?????????????????????????????????????????????? | | ?????????????????????????????????????????????? | | ?????????????????????????????????????????????? | | ?????????????????????????????????????????????? | | ?????????????????????????????????????????????? | | ?????????????????????????????????????????????? | | ?????????????????????????????????????????????? | | ?????????????????????????????????????????????? | | ?????????????????????????????????????????????? | | ?????????????????????????????????????????????? | | ?????????????????????????????????????????????? | | ?????????????????????????????????????????????? | | ?????????????????????????????????????????????? | | ?????????????????????????????????????????????? | | ?????????????????????????????????????????????? | +----------------------------------------------------+ Best States ------------- Heat Dissipation 53 Energy Generation 18 Energy Capacity 150 Matter Stores 300 Matter Capacity 300 Sight Range 16 Terrain Scan Density 10 Armor Coverage 305 Evasion (%) 55 Recoil Reduction 1 Energy Filtering 30 Item Schematics ----------------- None Robot Schematics ------------------ None Fabricated ------------ Nothing Repaired ---------- Nothing Alien Tech Used ----------------- None Achievements -------------- None Challenges ------------ None Game ------ Seed CatalystActivePendant Manual? 0 Play Time 00:29:25 Cumulative 174.7 hours Start 2025.10.05 @ 07:22:11 End 2025.10.05 @ 17:56:14 Sessions 1 Manual Loads 0 Difficulty Rogue Special Mode None Game No. 538 Rogue 537 Adventurer 1 Explorer 0 Win Type - Total 0 Types 0/0/0/0/0/0/0/0/0/0 Lore% 61 Gallery% 57 Achievement% 44 Wizard Run 0 Options --------- Layout 1 ASCII 0 Keyboard 0 Movement Mouse Keybinds 0 Fullscreen 1 Font 24/Smallcaps Map View 50x35 Zoom Use 0% Tactical HUD 0 Map Filters NONE Filters NONE Steam 1 RUN: 71008b00-69f4-4788-90d2-07f2a2e0b33a